bitfinex-derivatives/quotes_ETHF0:USTF0_20250501
["timestamp","ask_amount","ask_price","bid_price","bid_amount"]
[1746110262397,1.08473,1843.2,1843.0,3.754]
[1746110262604,1.08474,1843.1,1843.0,4.83878]
[1746110262797,1.08471,1843.2,1843.1,1.08472]
[1746110262996,1.08471,1843.2,1843.1,1.08474]
[1746110263196,1.08474,1843.1,1843.0,4.83875]
[1746110263497,1.08469,1843.2,1843.1,1.08474]
[1746110263692,1.08466,1843.3,1843.2,1.08466]
[1746110263901,9.6731,1843.5,1843.0,3.754]
[1746110264103,1.08474,1843.1,1843.0,3.754]
[1746110264505,1.08473,1843.2,1843.0,4.8388]
[1746110264706,1.08474,1843.1,1843.0,4.8388]
[1746110264906,3.02058,1843.2,1843.0,3.754]
[1746110265105,3.02058,1843.2,1843.0,4.83876]
[1746110265605,3.02058,1843.2,1843.1,1.08474]
[1746110265803,3.02058,1843.2,1843.0,4.83877]
[1746110266001,1.08474,1843.1,1843.0,4.83878]
[1746110266203,4.10529,1843.2,1843.1,1.08474]
[1746110266608,3.02058,1843.2,1843.1,1.08474]
[1746110267005,3.02058,1843.2,1843.0,4.83875]
[1746110267207,1.08474,1843.1,1843.0,3.754]
[1746110267596,1.08474,1843.1,1842.5,40.8]
[1746110267597,2.71201,1843.0,1842.5,44.0078]
[1746110267802,1.08498,1842.8,1842.7,1.08496]
[1746110268104,1.08484,1843.0,1842.9,1.0848]
[1746110269007,1.08492,1842.9,1842.8,1.0849]
[1746110269208,1.08494,1842.8,1842.7,1.08493]
[1746110269403,1.0849,1842.9,1842.8,1.08489]
[1746110269713,1.0849,1842.9,1842.6,3.754]
[1746110269714,1.08495,1842.8,1842.7,1.08494]
[1746110270003,1.08498,1842.7,1842.6,3.754]
[1746110270304,1.08504,1842.6,1842.5,41.8851]
[1746110270509,1.08504,1842.6,1842.5,41.88508]
[1746110270810,1.08504,1842.6,1842.5,40.8]
[1746110271404,7.31342,1842.6,1842.5,40.8]
[1746110273109,4.10562,1842.6,1842.5,40.8]
[1746110273612,4.10562,1842.6,1842.5,41.8851]
[1746110274611,4.10562,1842.6,1842.5,40.8]
[1746110274812,4.10562,1842.6,1842.5,41.8851]
[1746110276610,3.02058,1842.6,1842.5,48.8479]
[1746110276816,3.02058,1842.6,1842.5,53.8479]
[1746110277307,3.02058,1843.0,1842.8,1.08491]
[1746110277507,1.08482,1843.0,1842.8,4.29271]
[1746110277709,1.08486,1842.9,1842.8,3.2078]
[1746110278018,1.08498,1842.7,1842.6,1.085]
[1746110278312,2.71221,1842.9,1842.5,45.64005]
[1746110278515,1.08503,1842.7,1842.5,45.64005]
[1746110278721,1.08503,1842.7,1842.6,1.08504]
[1746110278913,1.08504,1842.6,1842.5,45.64006]
[1746110279112,3.02058,1842.8,1842.6,1.08501]
[1746110279313,3.02058,1842.8,1842.5,44.555]
[1746110279314,1.08504,1842.6,1842.5,40.8]
[1746110280517,1.08503,1842.7,1842.6,1.08499]
[1746110280721,1.08504,1842.6,1842.5,41.88506]
[1746110281012,1.08504,1842.6,1842.5,40.8]
[1746110282613,1.08539,1842.0,1841.9,1.0854]
[1746110282810,2.71338,1842.1,1841.8,3.2078]
[1746110283020,2.71338,1842.1,1841.8,40.8]
[1746110283215,1.08545,1841.9,1841.8,40.8]
[1746110283620,4.10603,1841.9,1841.8,40.8]
[1746110284615,1.08569,1841.5,1841.4,8.10953]
[1746110284923,1.0854,1842.0,1841.9,1.08542]
[1746110285122,1.08553,1841.8,1841.7,4.90152]
[1746110285416,1.08553,1841.8,1841.7,3.816]
[1746110287325,1.08569,1841.5,1841.4,44.617]
[1746110287828,1.08569,1841.5,1841.4,48.91054]
[1746110288125,1.08569,1841.5,1841.4,44.617]
[1746110288428,1.08569,1841.5,1841.4,40.8]
[1746110290331,1.08574,1841.4,1841.3,17.86801681]
[1746110290730,1.08574,1841.4,1841.3,58.66801681]
[1746110291734,1.08574,1841.4,1841.3,17.86801681]
[1746110291931,4.10632,1841.4,1841.3,17.86801681]
[1746110292136,9.10632,1841.4,1841.3,17.86801681]
[1746110292530,4.10632,1841.4,1841.3,17.86801681]
[1746110292735,1.08592,1841.1,1841.0,40.8]
[1746110292928,1.0859,1841.2,1841.0,40.8]
[1746110293134,5.735,1841.4,1841.0,40.8]
[1746110293135,3.02058,1841.4,1841.3,1.0858]
[1746110293429,4.10637,1841.4,1841.3,1.0858]
[1746110294039,1.08584,1841.3,1841.2,1.08582]
[1746110294248,3.02058,1841.4,1841.3,1.0858]
[1746110294534,3.02058,1841.4,1841.3,4.2936]
[1746110294736,3.02058,1841.4,1841.3,1.0858]
[1746110295132,4.10632,1841.4,1841.3,1.0858]
[1746110295538,1.08586,1841.2,1841.1,3.818]
[1746110295731,1.08586,1841.2,1841.1,8.11172]
[1746110295931,1.08586,1841.2,1841.1,7.0258]
[1746110296131,1.08586,1841.2,1841.1,8.1117]
[1746110296333,3.02058,1841.4,1841.1,8.1117]
[1746110296334,1.08582,1841.3,1841.2,1.08582]
[1746110296534,3.02058,1841.4,1841.3,1.0858]
[1746110296734,3.02058,1841.4,1841.3,4.2936]
[1746110297040,1.08574,1841.4,1841.3,4.2936]
[1746110297740,1.08574,1841.4,1841.3,3.2078]
[1746110298041,1.08574,1841.4,1841.3,4.2936]
[1746110299041,2.71422,1841.5,1841.1,7.0258]
[1746110299240,1.08582,1841.3,1841.2,1.08582]
[1746110299437,1.08586,1841.2,1841.1,8.11169]
[1746110299745,1.08586,1841.2,1841.1,7.0258]
[1746110299938,3.02058,1841.9,1841.1,7.0258]
[1746110300235,1.08541,1842.0,1841.8,4.29327]
[1746110300441,1.08541,1842.0,1841.9,3.818]
[1746110300639,1.08541,1842.0,1841.9,40.8]
[1746110300640,1.08539,1842.0,1841.9,40.8]
[1746110302040,4.29319,1842.0,1841.9,40.8]
[1746110302537,3.2078,1842.4,1841.9,3.2078]
[1746110302743,1.08542,1842.0,1841.7,3.818]
[1746110303145,1.08545,1841.9,1841.8,1.08547]
[1746110303343,1.08545,1841.9,1841.8,41.88547]
[1746110303641,1.08543,1842.0,1841.9,1.08545]
[1746110304043,1.08538,1842.1,1842.0,1.08539]
[1746110304442,3.2078,1842.2,1841.8,40.8]
[1746110304947,3.2078,1842.2,1841.8,43.51377]
[1746110305146,1.08533,1842.1,1842.0,1.08533]
[1746110305350,1.08531,1842.2,1842.1,1.08533]
[1746110305550,4.10582,1842.3,1842.2,1.08527]
[1746110306047,1.08527,1842.2,1842.1,4.29309]
[1746110306447,3.02058,1842.3,1841.9,5.92143]
[1746110306647,4.10583,1842.3,1842.2,1.08527]
[1746110307350,1.08529,1842.2,1842.1,1.08529]
[1746110307549,4.10584,1842.3,1842.2,1.08527]
[1746110307748,1.08529,1842.2,1842.1,1.08529]
[1746110308047,5.73364,1842.3,1841.9,4.2932]
[1746110308245,1.08536,1842.1,1842.0,1.08536]
[1746110308444,1.08539,1842.0,1841.9,4.29319]
[1746110308749,1.08539,1842.0,1841.9,3.2078]
[1746110308949,1.08545,1841.9,1841.8,40.8]
[1746110310248,4.10603,1841.9,1841.8,40.8]
[1746110310447,4.10603,1841.9,1841.2,7.14024164]
[1746110310448,12.0258,1841.9,1841.2,7.14024164]
[1746110310648,1.0858,1841.3,1841.2,8.22607164]
[1746110310849,1.0858,1841.3,1841.2,49.02607164]
[1746110311455,1.0858,1841.3,1841.2,47.94024164]
[1746110312749,1.0858,1841.3,1841.2,49.02610164]
[1746110312953,1.0858,1841.3,1841.2,47.94024164]
[1746110313150,6.9758,1841.6,1841.2,47.94024164]
[1746110313447,1.0858,1841.3,1841.2,49.02607164]
[1746110313755,1.0858,1841.3,1841.2,41.88583]
[1746110314355,1.0858,1841.3,1841.2,45.09362]
[1746110315658,2.71393,1841.7,1841.2,49.0078]
[1746110315955,1.0858,1841.4,1841.3,1.08579]
[1746110316154,1.0858,1841.3,1841.2,45.09361]
[1746110316355,1.0858,1841.4,1841.3,1.08578]
[1746110316555,1.0858,1841.3,1841.2,41.88584]
[1746110316858,1.08572,1841.5,1841.4,1.08571]
[1746110317054,1.08567,1841.6,1841.5,1.08566]
[1746110317456,4.10619,1841.7,1841.6,1.08563]
[1746110317656,3.2078,1842.2,1841.8,1.08551]
[1746110317856,1.08539,1842.0,1841.9,4.2932]
[1746110318156,3.2078,1842.2,1842.0,1.08535]
[1746110318459,1.08533,1842.2,1842.1,1.08532]
[1746110318652,1.08539,1842.0,1841.9,3.769]
[1746110318852,1.08538,1842.1,1842.0,1.08538]
[1746110319157,3.02058,1842.3,1842.0,3.2078]
[1746110319354,1.08532,1842.2,1842.1,1.08532]
[1746110320352,1.08533,1842.1,1842.0,4.29315]
[1746110320659,1.08532,1842.2,1842.1,1.0853]
[1746110320957,1.08532,1842.2,1842.1,41.8853]
[1746110321849,3.02058,1842.3,1842.2,1.08527]
[1746110322054,3.02058,1842.3,1842.2,4.29307]
[1746110322259,3.02058,1842.3,1842.2,8.06107]
[1746110322461,3.02058,1842.3,1842.2,48.86107]
[1746110322755,3.02058,1842.3,1842.2,45.65327]
[1746110322961,3.02058,1842.3,1842.2,48.86107]
[1746110323262,1.08514,1842.5,1842.4,1.08516]
[1746110324855,5.0,1842.5,1841.8,3.2078]
[1746110325056,5.0,1842.5,1841.5,14.28589517]
[1746110325057,3.2078,1841.9,1841.6,7.39366601]
[1746110325352,1.08569,1841.5,1841.4,17.50063363]
[1746110325552,8.06149,1841.5,1841.4,17.50063363]
[1746110325754,13.06149,1841.5,1841.4,16.20236363]
[1746110325954,13.06149,1841.5,1841.4,13.42631363]
[1746110326362,13.06149,1841.5,1841.4,12.00205363]
[1746110326565,13.06149,1841.5,1841.4,9.16337363]
[1746110326864,13.06149,1841.5,1841.4,7.28098363]
[1746110327062,13.06149,1841.5,1841.4,5.20299363]
[1746110327265,13.06149,1841.5,1841.4,3.17903363]
[1746110327562,13.06149,1841.5,1841.4,1.13667363]
[1746110327751,13.06149,1841.5,1841.3,12.74439389]
[1746110327752,1.08574,1841.4,1841.3,11.11858752]
[1746110327954,1.08574,1841.4,1841.3,9.82113752]
[1746110328150,1.08574,1841.4,1840.7,1.08612]
[1746110328151,2.71457,1841.3,1840.7,1.08612]
[1746110328364,1.08604,1840.9,1840.6,4.85417]
[1746110328765,1.08604,1840.9,1840.7,1.08616]
[1746110329365,1.08604,1840.9,1840.7,4.29396]
[1746110329768,1.08604,1840.9,1840.7,3.2078]
[1746110330163,1.08604,1840.9,1840.6,4.85417]
[1746110331364,1.08604,1840.9,1840.7,1.08614]
[1746110331567,1.08604,1840.9,1840.7,1.08612]
[1746110332368,3.02058,1841.0,1840.6,3.768]
[1746110332570,1.08604,1840.9,1840.6,3.768]
[1746110332966,1.08604,1840.9,1840.7,1.08615]
[1746110333172,1.08604,1840.9,1840.7,1.08616]
[1746110334675,6.22838,1841.0,1840.6,3.768]
[1746110334881,3.02058,1841.0,1840.9,1.08604]
[1746110335184,4.10656,1841.0,1840.9,1.08604]
[1746110338086,1.08598,1841.0,1840.9,1.08604]
[1746110339887,1.08604,1840.9,1840.8,8.22665067]
[1746110340486,1.08601,1841.0,1840.9,1.08598]
[1746110341385,3.02058,1841.3,1841.2,1.08586]
[1746110341688,1.0859,1841.2,1841.1,1.08584]
[1746110341882,1.0859,1841.2,1841.1,41.88584]
[1746110342288,1.08585,1841.3,1841.2,1.08582]
[1746110342788,1.08586,1841.2,1841.1,41.88587]
[1746110342988,1.08586,1841.3,1841.2,1.08583]
[1746110343489,1.08586,1841.2,1841.1,41.88588]
[1746110344191,1.08585,1841.3,1841.2,1.08582]
[1746110345688,5.73493,1841.5,1841.1,40.8]
[1746110345992,1.08586,1841.2,1841.1,41.88592]
[1746110346185,3.2078,1841.4,1841.1,43.5147]
[1746110346390,1.08585,1841.3,1841.2,1.08581]
[1746110346692,5.73488,1841.5,1841.1,40.8]
[1746110346991,1.08585,1841.3,1841.2,1.08581]
[1746110347188,1.08579,1841.4,1841.3,1.08574]
[1746110347393,3.02058,1841.5,1841.1,46.72252]
[1746110347585,3.02058,1841.5,1841.4,1.08574]
[1746110347889,4.10627,1841.5,1841.4,1.08574]
[1746110348194,3.2078,1841.6,1841.5,1.08569]
[1746110348385,4.29348,1841.6,1841.5,1.08569]
[1746110349385,4.10622,1841.7,1841.6,1.08563]
[1746110349785,3.02058,1841.7,1841.6,1.08563]
[1746110349985,4.10615,1841.7,1841.6,1.08563]
[1746110350187,1.08568,1841.6,1841.5,1.08566]
[1746110351494,1.08569,1841.5,1841.4,4.9807]
[1746110351691,1.08579,1841.4,1841.3,1.08576]
[1746110352093,1.08585,1841.3,1841.2,1.08583]
[1746110352296,3.02058,1841.4,1841.3,1.0858]
[1746110352686,3.02058,1841.4,1841.3,4.2936]
[1746110352891,3.02058,1841.4,1841.3,1.0858]
[1746110353396,3.02058,1841.4,1841.3,4.2936]
[1746110354897,3.02058,1841.4,1841.3,9.2936]
[1746110355501,1.08568,1841.6,1841.5,1.08569]
[1746110355999,1.08571,1841.5,1841.4,1.08568]
[1746110356197,1.08574,1841.4,1841.3,1.08575]
[1746110356500,1.0858,1841.3,1841.2,4.97981]
[1746110356701,1.0858,1841.3,1841.2,3.894]
[1746110357001,1.0858,1841.3,1841.2,4.97986]
[1746110357196,1.08572,1841.5,1841.4,1.08571]
[1746110357398,1.08574,1841.4,1841.3,1.08576]
[1746110357899,1.08571,1841.5,1841.4,1.08569]
[1746110359197,3.02058,1841.6,1841.3,3.2078]
[1746110359198,4.10625,1841.6,1841.5,1.08569]
[1746110359704,1.08569,1841.5,1841.4,4.2935]
[1746110360003,1.08577,1841.4,1841.3,1.08575]
[1746110361402,1.08573,1841.5,1841.4,1.08569]
[1746110361705,3.02058,1841.6,1841.5,1.08569]
[1746110361996,4.10621,1841.6,1841.5,1.08569]
[1746110362399,3.02058,1841.6,1841.5,1.08569]
[1746110362695,4.10621,1841.6,1841.5,1.08569]
[1746110363103,1.08574,1841.5,1841.4,1.0857]
[1746110363800,4.10626,1841.6,1841.5,1.08569]
[1746110363994,3.02058,1841.6,1841.5,1.08569]
[1746110364192,1.19409942,1841.8,1841.5,3.2078]
[1746110364504,0.10858942,1841.8,1841.7,1.08557]
[1746110365106,1.08557,1841.7,1841.6,4.97958]
[1746110365402,1.08563,1841.6,1841.5,3.2078]
[1746110365706,1.08563,1841.6,1841.5,4.29349]
[1746110366004,1.08563,1841.7,1841.6,1.0856]
[1746110366204,1.19414942,1841.8,1841.7,1.08557]
[1746110366409,1.0856,1841.7,1841.6,1.08558]
[1746110367002,1.0856,1841.7,1841.5,3.2078]
[1746110367003,1.08563,1841.6,1841.5,4.29345]
[1746110367196,1.08563,1841.6,1841.4,3.894]
[1746110367197,5.53630942,1841.8,1841.4,3.894]
[1746110367402,1.08567,1841.6,1841.5,1.08566]
[1746110368308,1.08561,1841.7,1841.6,1.08559]
[1746110368500,1.08569,1841.5,1841.4,4.97967]
[1746110368702,1.08574,1841.4,1841.1,50.61647]
[1746110368907,1.08574,1841.4,1841.3,1.08578]
[1746110369116,5.92173,1841.7,1841.4,1.08574]
[1746110369117,1.08573,1841.5,1841.4,1.08574]
[1746110369406,3.12916942,1841.8,1841.3,3.2078]
[1746110369604,1.08561,1841.7,1841.6,1.08559]
[1746110370202,4.21472942,1841.8,1841.7,1.08557]
[1746110370410,1.19414942,1841.8,1841.7,1.08557]
[1746110370613,1.08564,1841.7,1841.6,1.08561]
[1746110371008,0.10858942,1841.8,1841.7,1.08557]
[1746110371205,3.02058,1842.0,1841.9,1.08545]
[1746110371511,1.08549,1841.9,1841.8,1.08546]
[1746110371710,1.08549,1841.9,1841.8,4.93146]
[1746110371911,4.10601,1842.0,1841.9,1.08545]
[1746110372308,3.02058,1842.0,1841.9,1.08545]
[1746110372503,4.29318,1842.1,1841.8,3.846]
[1746110372709,1.08531,1842.2,1842.1,1.08527]
[1746110372908,1.08531,1842.2,1842.1,4.29307]
[1746110373216,1.08531,1842.2,1842.1,44.0078]
[1746110373405,1.08531,1842.2,1842.1,40.8]
[1746110375214,4.29311,1842.2,1842.1,40.8]
[1746110375413,1.08545,1841.9,1841.8,8.13927]
[1746110375814,1.08545,1841.9,1841.8,48.93927]
[1746110376007,1.08545,1841.9,1841.8,44.646]
[1746110376207,5.73393,1842.1,1841.8,40.8]
[1746110376510,3.02058,1842.1,1841.9,1.08543]
[1746110376706,1.08545,1841.9,1841.8,41.88546]
[1746110376908,1.08545,1841.9,1841.8,40.8]
[1746110377614,1.08545,1841.9,1841.8,41.88551]
[1746110379517,1.08545,1841.9,1841.8,40.8]
[1746110381115,1.08545,1841.9,1841.6,8.13838]
[1746110381116,1.08557,1841.7,1841.6,4.93058]
[1746110381715,1.08557,1841.7,1841.6,45.73058]
[1746110382119,1.08557,1841.7,1841.6,44.645]
[1746110382314,1.08557,1841.7,1841.6,45.73063]
[1746110383011,1.08557,1841.7,1841.6,40.8]
[1746110383622,1.08557,1841.7,1841.6,41.88563]
[1746110384418,1.08555,1841.8,1841.7,1.08551]
[1746110384912,1.08546,1842.0,1841.9,1.08545]
[1746110386213,4.29318,1842.1,1841.7,5.92168]
[1746110386419,4.29318,1842.1,1842.0,1.08539]
[1746110386618,1.08545,1842.0,1841.9,1.08541]
[1746110388817,1.08545,1842.0,1841.9,4.29321]
[1746110389010,4.1059,1842.2,1842.1,1.08533]
[1746110389210,4.1059,1842.2,1842.1,3.2078]
[1746110389717,1.08533,1842.1,1842.0,1.08534]
[1746110390817,1.08545,1842.0,1841.9,1.08541]
[1746110391719,1.08551,1841.9,1841.8,1.08548]
[1746110392420,1.08555,1841.8,1841.7,1.08552]
[1746110392618,1.0855,1841.9,1841.8,1.08548]
[1746110392815,3.2078,1842.1,1841.6,44.646]
[1746110393120,1.08557,1841.7,1841.6,41.88558]
[1746110394019,1.08557,1841.7,1841.6,41.88559]
[1746110394217,1.08557,1841.7,1841.6,40.8]
[1746110394419,1.08557,1841.7,1841.6,41.88563]
[1746110394722,1.08557,1841.8,1841.7,1.08555]
[1746110395019,3.2078,1841.9,1841.6,40.8]
[1746110395224,1.08545,1842.0,1841.9,1.08542]
[1746110396626,2.71349,1842.0,1841.6,40.8]
[1746110396827,1.08563,1841.6,1841.5,1.08566]
[1746110397023,1.08569,1841.5,1841.4,4.93074]
[1746110398027,1.08567,1841.6,1841.5,1.08563]
[1746110399025,4.10618,1841.7,1841.6,1.08563]
[1746110400322,1.08554,1841.8,1841.7,1.08551]
[1746110400524,3.02058,1842.0,1841.9,1.08545]
[1746110400725,4.10597,1842.0,1841.9,1.08545]
[1746110400925,3.02058,1842.0,1841.9,1.08545]
[1746110401226,5.73365,1842.3,1841.8,3.2078]
[1746110401429,1.08541,1842.0,1841.9,1.08539]
[1746110402419,1.08538,1842.1,1842.0,1.08535]
[1746110403225,1.0853,1842.2,1842.1,1.08528]
[1746110403431,1.0853,1842.2,1842.1,1.08527]
[1746110403720,1.08533,1842.1,1842.0,3.781]
[1746110404028,1.08533,1842.1,1842.0,45.66639]
[1746110404626,1.08531,1842.2,1842.1,1.08531]
[1746110404827,1.08533,1842.1,1842.0,45.66635]
[1746110405029,8.94151,1842.3,1842.0,44.581]
[1746110405220,1.08527,1842.2,1842.1,1.08533]
[1746110405420,1.08533,1842.1,1842.0,44.581]
[1746110405622,1.08533,1842.1,1842.0,40.8]
[1746110407926,1.08533,1842.2,1842.1,1.08529]
[1746110408428,7.31365,1842.3,1842.2,1.08527]
[1746110408720,1.08527,1842.3,1842.2,1.08527]
[1746110408921,1.08527,1842.3,1842.0,43.51337]
[1746110408922,4.10578,1842.4,1842.3,1.08521]
[1746110409322,4.10574,1842.4,1842.3,4.29301]
[1746110409527,4.10574,1842.4,1842.3,1.08521]
[1746110410528,3.02058,1842.4,1842.3,1.08521]
[1746110411824,4.10574,1842.4,1842.3,1.08521]
[1746110412228,3.02058,1842.4,1842.3,1.08521]
[1746110412624,6.22838,1842.7,1842.6,1.08504]
[1746110412823,1.08513,1842.5,1842.4,1.08516]
[1746110413027,1.08513,1842.5,1842.4,4.86616]
[1746110413230,1.08509,1842.6,1842.5,1.08509]
[1746110413722,1.08509,1842.6,1842.4,3.781]
[1746110413723,1.0851,1842.5,1842.4,3.781]
[1746110413920,1.0851,1842.5,1842.4,4.86616]
[1746110414128,1.0851,1842.5,1842.4,3.781]
[1746110414326,1.0851,1842.5,1842.4,4.86616]
[1746110415231,3.02058,1842.9,1842.4,6.49377]
[1746110415435,1.08508,1842.6,1842.5,1.08505]
[1746110415732,3.02058,1842.9,1842.4,6.49382]
[1746110415932,1.08497,1842.8,1842.7,1.08497]
[1746110416530,1.085,1842.7,1842.6,1.08498]
[1746110416731,1.08495,1842.8,1842.7,1.08493]
[1746110417626,4.10548,1842.9,1842.8,1.08492]
[1746110418423,1.08504,1842.6,1842.5,1.08505]
[1746110418633,1.08502,1842.7,1842.6,1.08497]
[1746110420540,1.08502,1842.7,1842.4,1.08506]
[1746110420541,1.08514,1842.5,1842.4,1.08506]
[1746110420739,1.08514,1842.5,1842.4,4.86506]
[1746110421036,1.08516,1842.4,1842.3,4.29297]
[1746110421236,1.08516,1842.4,1842.3,4.29301]
[1746110422139,1.08516,1842.4,1842.3,1.08521]
[1746110422338,3.02058,1842.8,1842.3,3.2078]
[1746110422640,3.02058,1842.8,1842.2,3.78]
[1746110422641,3.02058,1843.1,1843.0,1.0848]
[1746110423141,4.10534,1843.1,1843.0,1.0848]
[1746110423333,4.10534,1843.1,1843.0,41.8848]
[1746110423534,3.02058,1843.1,1843.0,41.8848]
[1746110423939,4.10532,1843.1,1843.0,41.8848]
[1746110424839,1.08472,1843.2,1843.1,1.0847]
[1746110427038,3.2078,1843.3,1843.0,41.88477]
[1746110427240,2.7114,1843.5,1843.0,41.88477]
[1746110427434,5.9192,1843.5,1843.0,41.88477]
[1746110427631,3.02058,1843.6,1843.1,3.2078]
[1746110427833,1.08453,1843.5,1843.3,1.08461]
[1746110428234,1.08457,1843.4,1843.3,1.08461]
[1746110428439,1.08457,1843.4,1843.2,4.86464]
[1746110428638,1.08463,1843.3,1843.2,4.86464]
[1746110429034,5.73173,1843.6,1843.2,4.86464]
[1746110429035,1.08451,1843.5,1843.4,1.08454]
[1746110429244,1.08451,1843.5,1843.3,4.29238]
[1746110429646,1.08457,1843.4,1843.3,4.29238]
[1746110430643,1.08463,1843.3,1843.2,3.78]
[1746110430946,1.08463,1843.3,1843.2,4.29248]
[1746110431541,1.08462,1843.4,1843.3,1.08459]
[1746110432049,1.08463,1843.3,1843.2,4.29245]
[1746110432553,1.08463,1843.3,1843.2,3.2078]
[1746110432850,1.08468,1843.3,1843.2,1.08466]
[1746110434046,1.08468,1843.2,1843.1,4.8637]
[1746110434246,1.08468,1843.2,1843.1,3.779]
[1746110434449,1.08468,1843.2,1843.1,4.86374]
[1746110435139,6.22838,1843.5,1843.0,44.0078]
[1746110435140,1.08474,1843.1,1843.0,41.88479]
[1746110435338,1.08474,1843.1,1843.0,44.552]
[1746110435554,1.08474,1843.1,1843.0,40.8]
[1746110435951,4.29254,1843.1,1843.0,40.8]
[1746110436252,1.08474,1843.1,1843.0,40.8]
[1746110436643,1.08486,1842.9,1842.8,1.08489]
[1746110436844,1.08483,1843.0,1842.9,1.08479]
[1746110437042,1.08478,1843.1,1843.0,1.08474]
[1746110437352,1.08478,1843.1,1843.0,41.88474]
[1746110437548,1.08473,1843.2,1843.1,1.08469]
[1746110439352,1.08466,1843.3,1843.2,1.08463]
[1746110439551,1.08473,1843.2,1843.1,1.08469]
[1746110442249,1.08474,1843.1,1843.0,44.552]
[1746110442746,1.08474,1843.1,1843.0,40.8]
[1746110445754,4.29254,1843.1,1843.0,40.8]
[1746110446055,1.08492,1842.8,1842.7,4.83693]
[1746110446255,1.08492,1842.8,1842.7,3.752]
[1746110446453,1.08492,1842.8,1842.7,4.83698]
[1746110446852,1.08492,1842.8,1842.7,8.04478]
[1746110447052,4.10548,1842.9,1842.8,1.08492]
[1746110448455,4.10548,1842.9,1842.8,1.48503779]
[1746110449059,4.10548,1842.9,1842.8,0.40011779]
[1746110452456,1.0849,1842.9,1842.8,0.40011779]
[1746110452657,1.0849,1842.9,1842.8,1.48503779]
[1746110454555,1.0849,1842.9,1842.8,0.40011779]
[1746110455957,9.2927,1842.9,1842.8,0.40011779]
[1746110456467,4.2927,1842.9,1842.8,0.40011779]
[1746110458264,1.0849,1842.9,1842.8,1.48503779]
[1746110458863,3.02058,1843.0,1842.9,1.08486]
[1746110459061,4.10538,1843.0,1842.9,1.08486]
[1746110459457,4.10538,1843.0,1842.9,1.48497779]
[1746110459858,4.10538,1843.0,1842.9,0.40011779]
[1746110460164,3.02058,1843.0,1842.9,1.48497779]
[1746110460360,4.10538,1843.0,1842.9,1.48497779]
[1746110460561,3.02058,1843.0,1842.9,1.48497779]
[1746110460761,4.10538,1843.0,1842.9,1.48497779]
[1746110461266,1.0848,1843.0,1842.9,1.48497779]
[1746110462067,3.02058,1843.2,1842.9,6.32006779]
[1746110462269,1.08475,1843.1,1843.0,1.0848]
[1746110462566,1.08473,1843.2,1843.1,1.08473]
[1746110462966,1.08474,1843.1,1843.0,1.48487779]
[1746110464466,1.08474,1843.1,1843.0,0.40011779]
[1746110465062,1.08474,1843.1,1843.0,1.48491779]
[1746110467867,1.08474,1843.1,1843.0,0.40011779]
[1746110468069,4.29254,1843.1,1843.0,0.40011779]
[1746110470565,7.31312,1843.1,1843.0,0.40011779]
[1746110471374,7.31312,1843.1,1843.0,1.48491779]
[1746110471671,7.31312,1843.1,1843.0,0.40011779]
[1746110474765,12.31312,1843.1,1843.0,0.40011779]
[1746110474971,7.31312,1843.1,1843.0,0.40011779]
[1746110475668,1.08498,1842.7,1842.6,3.75]
[1746110476067,1.08504,1842.6,1842.5,4.29288]
[1746110477674,1.08516,1842.4,1842.3,47.7578]
[1746110477864,1.08516,1842.4,1842.3,48.843]
[1746110478065,1.08516,1842.4,1842.3,47.7578]
[1746110478262,1.08527,1842.2,1842.1,4.69006118]
[1746110478465,1.08527,1842.2,1842.1,4.29309]
[1746110478664,1.08527,1842.2,1842.1,45.09309]
[1746110479971,3.02058,1842.6,1842.1,49.0078]
[1746110480274,4.10562,1842.6,1842.5,4.2929]
[1746110480573,1.08504,1842.6,1842.5,1.0851]
[1746110480868,1.0851,1842.5,1842.4,3.75]
[1746110481472,1.08521,1842.3,1842.2,1.08524]
[1746110481673,1.08527,1842.2,1842.1,46.04242227]
[1746110482377,1.08526,1842.3,1842.2,1.08524]
[1746110483175,1.08527,1842.2,1842.1,49.25017227]
[1746110483375,1.08527,1842.2,1842.1,46.04237227]
[1746110483678,1.08527,1842.2,1842.1,48.84307]
[1746110484677,1.08526,1842.3,1842.2,1.08524]
[1746110484974,1.08527,1842.2,1842.1,48.84311]
[1746110485173,1.08527,1842.2,1842.1,44.55]
[1746110485378,1.08527,1842.2,1842.1,45.63533]
[1746110486082,1.08526,1842.3,1842.2,1.08523]
[1746110486270,5.73335,1842.5,1842.2,1.08521]
[1746110486475,5.73339,1842.5,1842.1,44.55]
[1746110486676,1.08527,1842.3,1842.2,1.08525]
[1746110487776,1.0852,1842.4,1842.3,1.08517]
[1746110488071,4.1057,1842.5,1842.1,50.47109]
[1746110488273,4.1057,1842.5,1842.4,1.08516]
[1746110488476,1.08519,1842.4,1842.3,1.08516]
[1746110489182,1.08519,1842.4,1842.1,50.47109]
[1746110489389,1.08526,1842.3,1842.2,1.08523]
[1746110493887,3.02058,1842.3,1842.1,3.2078]
[1746110494093,2.71346,1842.1,1841.7,3.2078]
[1746110494288,1.08549,1841.9,1841.8,1.08547]
[1746110494489,1.08549,1841.9,1841.8,41.88547]
[1746110497593,1.08521,1842.4,1842.3,1.08516]
[1746110497794,1.08531,1842.2,1842.1,1.08525]
[1746110498093,5.92068,1842.5,1842.0,5.92129]